bitfinex/quotes_SOLUSD_20220311
["timestamp","ask_amount","ask_price","bid_price","bid_amount"]
[1647003958168,23.8635,83.358,83.303,58.86463441]
[1647003958370,23.8635,83.358,83.304,6.0]
[1647003958969,125.7,83.357,83.303,6.0]
[1647003959170,125.7,83.357,83.283,6.0]
[1647003959474,125.7,83.357,83.284,6.0]
[1647003959669,119.7,83.349,83.285,6.0]
[1647003959871,119.7,83.347,83.274,6.001]
[1647003960169,6.001,83.348,83.274,6.001]
[1647003960170,119.7,83.345,83.274,6.001]
[1647003960369,119.7,83.343,83.274,6.001]
[1647003960573,119.7,83.329,83.26,6.001]
[1647003960774,18.0163,83.31,83.227,5.502]
[1647003960972,119.7,83.309,83.227,5.502]
[1647003961473,119.7,83.307,83.228,60.1308504]
[1647003961672,119.7,83.307,83.229,6.003]
[1647003961873,119.7,83.307,83.229,5.503]
[1647003962077,18.0155,83.29,83.23,18.0151]
[1647003962272,119.7,83.289,83.231,6.005]
[1647003962476,119.7,83.298,83.23,18.0151]
[1647003962675,125.703,83.297,83.23,18.0151]
[1647003963074,18.0167,83.28,83.231,6.0]
[1647003964977,18.0167,83.28,83.231,5.5]
[1647003965978,18.0167,83.28,83.23,18.0151]
[1647003966180,18.0146,83.29,83.24,18.0138]
[1647003966585,18.0146,83.29,83.23,6.003]
[1647003968084,23.2979,83.296,83.23,24.0186]
[1647003968880,6.005,83.309,83.231,119.7]
[1647003969083,6.005,83.309,83.232,12.003]
[1647003969281,18.0106,83.31,83.251,52.89801197]
[1647003970684,0.7185557,83.309,83.251,52.39801197]
[1647003971180,0.7185557,83.309,83.26,18.0096]
[1647003974687,6.003,83.319,83.26,18.0096]
[1647003974991,14.42,83.32,83.26,18.0096]
[1647003975185,22.7961,83.327,83.26,18.0096]
[1647003975687,31.06724668,83.325,83.26,18.0096]
[1647003976186,18.0078,83.32,83.26,18.0096]
[1647003976392,119.7,83.319,83.252,22.5004]
[1647003976587,125.703,83.318,83.252,22.5004]
[1647003977188,4.79265856,83.309,83.252,22.5004]
[1647003979092,18.0115,83.3,83.252,22.5004]
[1647003980292,18.0115,83.3,83.251,52.39801197]
[1647003980992,28.65675856,83.309,83.251,52.39801197]
[1647003981498,28.65675856,83.309,83.26,18.0098]
[1647003982096,23.8641,83.309,83.26,18.0098]
[1647003982496,6.003,83.319,83.26,18.0098]
[1647003982702,29.3839,83.326,83.26,18.0098]
[1647003983098,31.54891091,83.325,83.26,18.0098]
[1647003984916,18.0038,83.34,83.26,18.0098]
[1647003985222,18.0038,83.34,83.28,18.0034]
[1647003985223,6.002,83.339,83.28,18.0034]
[1647003985815,32.29612023,83.338,83.281,58.24080958]
[1647003986016,18.0055,83.33,83.281,58.24080958]
[1647003987425,6.001,83.337,83.29,18.003]
[1647003987624,30.8599,83.353,83.29,18.003]
[1647003987821,24.8589,83.353,83.29,18.003]
[1647003988420,28.7203892,83.352,83.29,18.003]
[1647003990523,28.7203892,83.352,83.3,17.9995]
[1647003990721,18.001,83.35,83.301,60.98080388]
[1647003990920,28.7203892,83.352,83.301,60.98080388]
[1647003991122,24.8589,83.353,83.301,60.98080388]
[1647003991325,14.42,83.37,83.302,6.0]
[1647003991523,5.998,83.38,83.303,119.7]
[1647003991722,5.998,83.387,83.31,17.9989]
[1647003992123,5.998,83.387,83.311,5.998]
[1647003992124,35.30227523,83.386,83.311,5.998]
[1647003992325,5.998,83.385,83.306,5.998]
[1647003992930,17.9944,83.38,83.33,17.9931]
[1647003993125,5.998,83.379,83.331,53.53781403]
[1647003993332,5.998,83.385,83.331,53.53781403]
[1647003993926,17.9965,83.37,83.331,53.53781403]
[1647003994130,5.998,83.385,83.331,53.53781403]
[1647003995128,17.9949,83.38,83.331,53.53781403]
[1647003997431,5.998,83.379,83.312,24.9153]
[1647003997632,17.9987,83.36,83.312,24.9153]
[1647003998035,5.998,83.378,83.312,24.9153]
[1647003998232,23.3234,83.377,83.312,24.9153]
[1647003998440,5.998,83.376,83.313,57.44108593]
[1647003998634,0.55763001,83.369,83.313,57.44108593]
[1647004000938,0.55763001,83.369,83.314,5.998]
[1647004001135,0.55763001,83.369,83.32,17.9955]
[1647004001735,17.9969,83.37,83.32,17.9955]
[1647004002537,17.9969,83.37,83.314,5.998]
[1647004002937,29.86221484,83.369,83.314,5.998]
[1647004003141,17.9976,83.36,83.314,5.998]
[1647004003839,17.9976,83.36,83.312,24.9153]
[1647004004540,119.7,83.359,83.301,5.998]
[1647004004737,18.0071,83.35,83.288,6.0]
[1647004004940,5.9976904,83.349,83.289,6.0]
[1647004005839,18.0034,83.34,83.288,6.0]
[1647004006438,18.0034,83.34,83.287,64.01402963]
[1647004007041,12.53322191,83.339,83.287,64.01402963]
[1647004007240,12.53322191,83.339,83.29,18.0025]
[1647004007440,12.53322191,83.339,83.291,6.001]
[1647004007640,24.0437,83.348,83.291,6.001]
[1647004008244,18.0022,83.34,83.291,6.001]
[1647004008640,24.0437,83.348,83.3,18.0003]
[1647004008840,24.0437,83.348,83.301,53.28715946]
[1647004010243,12.532694,83.353,83.31,17.9979]
[1647004010443,22.5872,83.365,83.31,17.9979]
[1647004010644,5.998,83.364,83.31,17.9979]
[1647004011141,5.998,83.366,83.31,17.9979]
[1647004012044,31.50171546,83.369,83.311,5.998]
[1647004012246,12.53183378,83.373,83.32,17.9955]
[1647004012448,5.998,83.377,83.32,17.9955]
[1647004013244,5.998,83.377,83.321,54.55145325]
[1647004013450,10.31100628,83.368,83.321,54.55145325]
[1647004013744,17.9954,83.37,83.321,54.55145325]
[1647004014547,5.998,83.377,83.321,54.55145325]
[1647004014846,22.5872,83.378,83.33,17.9933]
[1647004015249,22.5872,83.378,83.322,5.998]
[1647004017148,22.5872,83.378,83.33,17.9936]
[1647004018149,17.9955,83.37,83.322,5.998]
[1647004018951,24.34758331,83.37,83.322,5.998]
[1647004019352,17.9955,83.37,83.322,5.998]
[1647004019752,22.5872,83.378,83.33,17.9943]
[1647004020354,34.99889514,83.377,83.33,17.9943]
[1647004020556,34.99889514,83.377,83.322,30.4737]
[1647004020755,17.9954,83.37,83.322,30.4737]
[1647004021357,17.9954,83.37,83.322,5.998]
[1647004021559,22.5872,83.378,83.322,5.998]
[1647004021956,22.5872,83.378,83.33,17.9942]
[1647004024960,22.5872,83.378,83.322,30.2469]
[1647004025377,24.51665128,83.37,83.322,30.2469]
[1647004027279,17.9955,83.37,83.322,30.2469]
[1647004027480,22.5872,83.378,83.33,17.9939]
[1647004028382,26.0881109,83.377,83.33,17.9939]
[1647004029180,26.0881109,83.377,83.322,30.2469]
[1647004029381,17.9957,83.37,83.252,119.7]
[1647004029581,17.9957,83.37,83.282,30.9234]
[1647004029880,17.9957,83.37,83.283,119.7]
[1647004030180,17.9957,83.37,83.287,119.7]
[1647004030778,17.9986,83.36,83.3,18.0]
[1647004030979,6.0,83.374,83.301,53.91060422]
[1647004031180,6.0,83.374,83.302,24.9234]
[1647004031779,22.5212,83.375,83.302,24.9234]
[1647004031990,34.81279431,83.374,83.302,24.9234]
[1647004032585,22.5212,83.375,83.31,17.9976]
[1647004035000,22.5212,83.375,83.311,119.7]
[1647004035200,22.5212,83.375,83.32,17.9941]
[1647004035399,22.5212,83.375,83.321,46.75998135]
[1647004036000,17.9957,83.37,83.321,46.75998135]
[1647004036402,33.11236658,83.403,83.321,46.75998135]
[1647004036603,24.4131,83.392,83.322,144.4718]
[1647004037802,24.4131,83.392,83.33,17.9937]
[1647004038002,17.9917,83.39,83.33,17.9937]
[1647004038402,32.35395841,83.389,83.33,17.9937]
[1647004039606,17.9935,83.38,83.33,17.9937]
[1647004040411,17.9935,83.38,83.322,24.7718]
[1647004041011,25.58027957,83.379,83.322,24.7718]
[1647004041211,3.50594683,83.369,83.322,24.7718]
[1647004042013,17.9979,83.37,83.322,24.7718]
[1647004042213,22.5358,83.379,83.322,24.7718]
[1647004044243,22.5358,83.379,83.33,17.9935]
[1647004044842,22.5358,83.379,83.322,24.7718]
[1647004046443,5.998,83.387,83.323,119.7]
[1647004046643,17.9917,83.39,83.323,119.7]
[1647004046843,17.9917,83.39,83.322,24.7718]
[1647004047046,17.9917,83.39,83.323,119.7]
[1647004047242,17.9917,83.39,83.322,24.7718]
[1647004047446,30.17375789,83.389,83.322,24.7718]
[1647004047644,1.63334434,83.4,83.322,24.7718]
[1647004047944,17.9897,83.4,83.323,119.7]
[1647004048544,28.89782772,83.399,83.323,119.7]
[1647004048744,28.39782772,83.399,83.33,17.9916]
[1647004049143,17.9911,83.39,83.33,17.9916]
[1647004049344,17.9911,83.39,83.331,119.7]
[1647004049548,17.9911,83.39,83.33,17.9916]
[1647004050646,17.9911,83.39,83.331,119.7]
[1647004051247,17.9911,83.39,83.334,175.10378927]
[1647004051746,17.9911,83.39,83.334,55.40378927]
[1647004052152,17.9911,83.39,83.334,175.10378927]
[1647004053149,17.9897,83.4,83.34,17.9897]
[1647004054049,42.77207752,83.4,83.34,17.9897]
[1647004055553,25.48102224,83.399,83.334,55.40378927]
[1647004055953,17.9925,83.39,83.334,55.40378927]
[1647004056153,23.8058,83.389,83.334,55.40378927]
[1647004056555,23.8058,83.389,83.332,23.4758]
[1647004057455,17.9935,83.38,83.332,23.4758]
[1647004057657,10.57752772,83.379,83.333,51.17330348]
[1647004058258,23.8058,83.389,83.334,119.7]
[1647004058455,23.8058,83.389,83.333,51.17330348]
[1647004059256,32.85211333,83.388,83.333,51.17330348]
[1647004060058,32.85211333,83.388,83.332,23.4758]
[1647004061058,17.9932,83.38,83.333,62.66769305]
[1647004062763,17.9932,83.38,83.332,23.4758]
[1647004063764,17.9932,83.38,83.28,59.9864]
[1647004063964,18.0002,83.36,83.31,23.302]
[1647004064766,2.50779191,83.359,83.31,23.302]
[1647004065976,2.50779191,83.359,83.284,23.798]
[1647004065977,18.0,83.35,83.284,23.798]
[1647004066172,18.0,83.35,83.285,6.0]
[1647004066572,18.0,83.35,83.286,60.40834792]
[1647004066773,23.0649,83.349,83.287,6.0]
[1647004068073,23.0649,83.349,83.29,18.0007]
[1647004068872,6.0,83.348,83.29,18.0007]
[1647004070295,6.0,83.348,83.291,119.7]
[1647004070496,6.0,83.348,83.3,17.9978]
[1647004070698,23.0649,83.349,83.301,47.301688]
[1647004073496,23.0649,83.349,83.31,17.996]
[1647004074299,24.7909,83.368,83.31,17.996]
[1647004074499,24.77768661,83.367,83.31,17.996]
[1647004075101,23.9655,83.366,83.31,17.996]
[1647004076405,23.9655,83.366,83.311,119.7]
[1647004076804,23.9655,83.366,83.32,17.9935]
[1647004077103,27.25897473,83.365,83.321,48.70076132]
[1647004079710,23.9655,83.366,83.321,48.70076132]
[1647004081113,23.9655,83.366,83.33,17.9924]
[1647004082713,23.9655,83.366,83.321,48.70076132]
[1647004086526,23.9655,83.366,83.33,17.9928]
[1647004088032,17.9918,83.39,83.323,119.7]
[1647004088232,17.9918,83.39,83.324,125.698]
[1647004088955,24.9039,83.389,83.324,125.698]
[1647004089155,5.998,83.404,83.331,119.7]
[1647004089347,5.997,83.406,83.333,119.7]
[1647004089547,5.997,83.406,83.335,119.7]
[1647004089746,23.2775,83.407,83.337,119.7]
[1647004089947,23.2775,83.407,83.339,119.7]
[1647004090145,25.51710019,83.406,83.351,119.7]
[1647004090347,23.2775,83.407,83.353,119.7]
[1647004091453,32.22010969,83.406,83.354,177.3212411]
[1647004092050,23.2775,83.407,83.354,177.3212411]
[1647004092251,24.7788,83.409,83.361,119.7]
[1647004093251,24.7788,83.409,83.356,119.7]
[1647004093551,24.6695,83.433,83.371,119.7]
[1647004093753,7.62834434,83.463,83.373,119.7]
[1647004093957,5.995,83.463,83.381,119.7]
[1647004094151,5.993,83.475,83.383,119.7]
[1647004094351,28.36358755,83.468,83.385,119.7]
[1647004094550,28.36358755,83.468,83.39,17.9743]
[1647004094750,28.36358755,83.468,83.391,131.693]
[1647004094953,28.36358755,83.468,83.393,119.7]
[1647004095153,28.36358755,83.468,83.392,24.6351]
[1647004095154,5.993,83.467,83.395,119.7]
[1647004095353,5.993,83.467,83.398,59.38847527]
[1647004095554,5.993,83.467,83.399,131.692]
[1647004096054,28.36358755,83.468,83.399,131.692]
[1647004096255,28.36358755,83.468,83.411,63.67161947]
[1647004096459,28.36358755,83.468,83.412,5.992]
[1647004096858,28.36358755,83.468,83.413,119.7]
[1647004097056,28.36358755,83.468,83.414,125.692]
[1647004100365,17.9766,83.46,83.414,5.992]
[1647004100761,5.992,83.459,83.36,14.42]
[1647004100962,28.7564,83.466,83.37,17.9788]
[1647004101364,28.7564,83.466,83.393,62.02114617]
[1647004101664,6.99631769,83.449,83.393,62.02114617]
[1647004102664,6.99631769,83.449,83.394,119.7]
[1647004104563,6.99631769,83.449,83.393,62.02114617]
[1647004104763,6.99631769,83.449,83.394,6.0]
[1647004104971,6.99631769,83.449,83.393,62.02114617]
[1647004105763,17.9809,83.44,83.393,62.02114617]
[1647004105963,6.99631769,83.449,83.393,62.02114617]
[1647004106463,6.99631769,83.449,83.38,17.9791]
[1647004106669,6.99631769,83.449,83.374,119.7]
[1647004106866,17.9808,83.44,83.354,119.7]
[1647004107165,17.9808,83.44,83.318,5.4245782]
[1647004107166,17.9808,83.44,83.361,119.7]
[1647004107364,30.1271,83.448,83.392,80.52014425]
[1647004107765,24.1331,83.448,83.392,80.52014425]
[1647004107966,24.1331,83.448,83.392,24.6351]
[1647004108764,5.993,83.447,83.36,14.42]
[1647004108964,17.9808,83.44,83.374,59.70895408]
[1647004109164,17.9808,83.44,83.38,17.9798]
[1647004109369,17.9808,83.44,83.374,59.70895408]
[1647004109567,17.9808,83.44,83.375,24.9588]
[1647004110268,5.993,83.447,83.383,119.7]
[1647004110668,24.1331,83.448,83.383,119.7]
[1647004111469,24.1331,83.448,83.375,24.9588]
[1647004111470,17.9805,83.44,83.38,17.9801]
[1647004111670,17.9805,83.44,83.375,24.9588]
[1647004111873,5.994,83.439,83.326,79.1864]
[1647004112071,24.3195,83.439,83.353,23.8546]
[1647004112672,29.13602224,83.438,83.353,23.8546]
[1647004113070,17.9901,83.42,83.353,143.5546]
[1647004113271,51.52636639,83.419,83.353,23.8546]
[1647004114270,17.9871,83.41,83.353,23.8546]
[1647004116875,17.9871,83.41,83.36,17.986]
[1647004117079,51.52636639,83.419,83.36,17.986]
[1647004118275,51.52636639,83.419,83.361,5.995]
[1647004118476,51.52636639,83.419,83.362,58.62214079]
[1647004118677,17.987,83.41,83.36,17.986]
[1647004118875,17.987,83.41,83.353,23.8546]
[1647004119276,17.987,83.41,83.354,5.996]
[1647004119476,24.2788,83.409,83.353,23.8546]
[1647004119679,24.2788,83.409,83.354,64.3298732]
[1647004120280,24.2788,83.409,83.36,17.9859]
[1647004121481,24.2788,83.409,83.353,23.8546]
[1647004122082,5.996,83.408,83.353,23.8546]
[1647004122602,17.9892,83.4,83.353,23.8546]
[1647004122781,5.996,83.408,83.353,23.8546]
[1647004122981,24.2788,83.409,83.353,23.8546]
[1647004123782,30.2748,83.409,83.353,23.8546]
[1647004123983,24.2788,83.409,83.36,17.9863]
[1647004124486,24.2788,83.409,83.353,23.8546]
[1647004124691,17.9891,83.4,83.332,5.996]
[1647004124990,5.997,83.399,83.332,5.996]
[1647004125185,22.6552,83.398,83.332,5.996]
[1647004125587,17.9982,83.38,83.332,5.996]
[1647004125789,26.56086639,83.379,83.332,5.996]
[1647004126590,26.56086639,83.379,83.304,5.998]
[1647004126789,17.9953,83.37,83.3,5.998]
[1647004126991,17.9953,83.37,83.289,3.04447957]
[1647004127189,17.9953,83.37,83.29,12.0]
[1647004127389,17.9953,83.37,83.291,47.83932952]
[1647004127594,17.9953,83.37,83.292,12.0]
[1647004127791,17.9953,83.37,83.292,35.861]
[1647004128091,17.9953,83.37,83.3,17.998]
[1647004128291,17.9953,83.37,83.301,5.998]
[1647004128690,17.9953,83.37,83.293,5.998]
[1647004128891,6.0,83.369,83.294,6.0]
[1647004129091,6.0,83.369,83.31,17.9973]
[1647004129293,22.7336,83.368,83.31,17.9973]
[1647004129492,17.9976,83.36,83.31,17.9973]
[1647004129693,8.79903885,83.359,83.31,17.9973]
[1647004130113,8.79903885,83.359,83.311,5.998]
[1647004130512,8.79903885,83.359,83.31,17.9973]
[1647004131414,8.79903885,83.359,83.307,5.998]
[1647004132215,8.79903885,83.359,83.306,47.29093264]
[1647004133515,8.79903885,83.359,83.31,17.9974]
[1647004134717,8.79903885,83.359,83.311,5.998]
[1647004136118,8.79903885,83.359,83.292,29.861]
[1647004136318,32.00597957,83.358,83.292,6.0]
[1647004136518,32.00597957,83.358,83.282,24.9257]
[1647004136718,3.04447957,83.357,83.283,24.3601]
[1647004136920,17.9998,83.35,83.284,6.0]
[1647004137118,6.001,83.349,83.284,6.0]
[1647004137520,6.001,83.349,83.283,24.3601]
[1647004137922,24.8248,83.348,83.283,24.3601]
[1647004138121,18.0043,83.33,83.283,24.3601]
[1647004138322,8.79903885,83.329,83.283,24.3601]
[1647004139422,8.79903885,83.329,83.28,18.0036]
[1647004140627,18.0025,83.34,83.282,119.7]
[1647004140825,18.0025,83.34,83.29,18.0018]
[1647004141026,18.0025,83.34,83.291,6.001]
[1647004141225,24.8248,83.348,83.283,22.6656]
[1647004141427,24.8248,83.348,83.284,6.0]
[1647004141729,24.8248,83.348,83.294,119.7]
[1647004142025,17.994,83.38,83.301,119.7]
[1647004142226,22.8647,83.379,83.303,119.7]
[1647004142427,22.8647,83.379,83.305,119.7]
[1647004142626,33.19544422,83.383,83.309,119.7]
[1647004142830,33.19544422,83.383,83.311,119.7]
[1647004143025,23.2608,83.385,83.321,119.7]
[1647004143226,23.2608,83.385,83.323,119.7]
[1647004143426,23.2608,83.385,83.324,5.998]
[1647004143626,23.2608,83.385,83.324,11.998]
[1647004143830,23.2608,83.385,83.325,119.7]
[1647004144030,23.2608,83.385,83.327,119.7]
[1647004144226,23.2608,83.385,83.329,119.7]
[1647004144628,23.2608,83.385,83.341,59.88076181]
[1647004146531,23.2608,83.385,83.35,17.989]
[1647004146735,31.18646952,83.395,83.35,17.989]
[1647004147534,22.8647,83.403,83.35,17.989]
[1647004149134,22.8647,83.403,83.351,119.7]
[1647004149437,24.7435,83.419,83.351,119.7]
[1647004149438,24.7435,83.419,83.36,17.9838]
[1647004149635,24.7435,83.419,83.361,119.7]
[1647004150239,5.996,83.429,83.371,119.7]
[1647004150439,23.3754,83.438,83.371,119.7]
[1647004151237,23.9191,83.452,83.371,119.7]
[1647004151439,25.82034631,83.462,83.381,177.02550775]
[1647004151838,25.82034631,83.462,83.39,59.91]
[1647004152038,25.82034631,83.462,83.391,119.7]
[1647004152238,25.82034631,83.462,83.384,23.8178]
[1647004152438,5.993,83.461,83.39,17.9778]
[1647004152637,5.993,83.461,83.384,23.8178]
[1647004153043,21.02187957,83.46,83.384,23.8178]
[1647004153238,5.993,83.459,83.384,23.8178]
[1647004153439,9.03747957,83.459,83.384,23.8178]
[1647004153641,3.04447957,83.458,83.384,23.8178]
[1647004153840,5.993,83.457,83.384,23.8178]
[1647004154040,17.9825,83.44,83.384,23.8178]
[1647004154240,9.53955893,83.439,83.384,23.8178]
[1647004154445,9.53955893,83.439,83.381,57.32550775]
[1647004154641,12.5840385,83.439,83.381,57.32550775]
[1647004155444,17.9852,83.43,83.381,57.32550775]
[1647004155647,9.53955893,83.439,83.381,57.32550775]
[1647004156246,9.53955893,83.439,83.382,119.7]
[1647004156465,3.04447957,83.455,83.382,119.7]
[1647004157468,17.9795,83.45,83.382,119.7]
[1647004160471,17.9795,83.45,83.381,57.32550775]
[1647004160672,33.87493843,83.454,83.381,57.32550775]
[1647004160673,17.9829,83.44,83.381,57.32550775]
[1647004160973,1.48496681,83.439,83.381,57.32550775]
[1647004161570,1.48496681,83.439,83.372,23.3522]
[1647004161773,17.9839,83.43,83.341,23.0448]
[1647004161973,53.8661,83.429,83.341,23.0448]
[1647004162272,119.7,83.428,83.341,23.0448]
[1647004162471,28.37720506,83.426,83.342,46.63108114]
[1647004162671,5.996,83.425,83.342,46.63108114]
[1647004162875,17.9893,83.41,83.342,46.63108114]
[1647004163173,6.98270018,83.409,83.342,46.63108114]
[1647004163375,5.996,83.408,83.342,46.63108114]
[1647004163576,5.996,83.408,83.341,23.0448]
[1647004163771,9.04047957,83.408,83.341,23.0448]
[1647004163973,17.9933,83.39,83.32,17.9934]
[1647004164172,17.9933,83.39,83.325,6.0]
[1647004164576,26.81472857,83.389,83.326,53.75714091]
[1647004165172,26.81472857,83.389,83.33,17.9917]
[1647004165774,26.81472857,83.389,83.326,53.75714091]
[1647004165977,26.81472857,83.389,83.325,6.0]
[1647004166180,17.9943,83.38,83.325,6.0]
[1647004166979,17.9943,83.38,83.326,46.51321722]
[1647004167381,5.998,83.388,83.326,46.51321722]
[1647004167784,12.53352555,83.391,83.327,119.7]
[1647004167982,24.6699,83.399,83.329,119.7]
[1647004168481,24.6699,83.399,83.331,119.7]
[1647004169382,24.6699,83.399,83.341,65.39553686]
[1647004170384,24.6699,83.399,83.35,17.9873]
[1647004170584,24.6699,83.399,83.341,65.39553686]
[1647004172185,17.9919,83.39,83.332,23.8445]
[1647004172785,5.998,83.389,83.332,23.8445]
[1647004173185,17.9938,83.38,83.333,61.1367477]
[1647004173584,23.2,83.397,83.333,61.1367477]
[1647004173987,23.2,83.397,83.341,119.7]
[1647004174186,23.2,83.397,83.343,119.7]
[1647004174384,23.2,83.397,83.334,5.997]
[1647004175387,17.9917,83.39,83.334,5.997]
[1647004175587,17.9917,83.39,83.335,6.0]
[1647004175788,17.9917,83.39,83.336,5.997]
[1647004175987,23.2,83.397,83.337,6.0]
[1647004176188,23.2,83.397,83.338,5.997]
[1647004176391,23.2,83.397,83.34,17.9903]
[1647004176588,23.2,83.397,83.341,5.997]
[1647004176789,15.29590405,83.425,83.342,6.0]
[1647004176988,23.1345,83.419,83.343,5.996]
[1647004177190,23.1345,83.419,83.344,6.0]
[1647004177388,23.1345,83.419,83.346,119.7]
[1647004177589,23.1345,83.419,83.348,119.7]
[1647004177891,32.92246429,83.417,83.351,61.92334704]
[1647004178088,5.996,83.416,83.335,5.996]
[1647004178294,31.30368891,83.416,83.335,5.996]
[1647004178490,43.64807253,83.415,83.335,5.996]
[1647004178692,5.997,83.414,83.335,5.996]
[1647004178895,14.42,83.41,83.335,5.996]
[1647004179089,5.997,83.409,83.335,5.996]
[1647004179489,23.1345,83.408,83.335,5.996]
[1647004179690,5.997,83.407,83.334,82.23937129]
[1647004179890,151.00468891,83.407,83.334,82.23937129]
[1647004180091,154.04916848,83.407,83.334,59.32857129]
[1647004180290,18.34038362,83.406,83.334,59.32857129]
[1647004180490,5.997,83.405,83.334,59.32857129]
[1647004180690,2.43744095,83.404,83.334,59.32857129]
[1647004180891,25.7083169,83.389,83.334,59.32857129]
[1647004181091,5.997,83.388,83.334,59.32857129]
[1647004182096,17.9934,83.38,83.334,59.32857129]
[1647004182695,30.7303,83.388,83.334,59.32857129]
[1647004183096,24.7333,83.388,83.334,59.32857129]
[1647004183497,24.7333,83.388,83.34,17.9902]
[1647004183896,24.7333,83.388,83.341,5.997]
[1647004184498,25.08814519,83.387,83.335,5.997]
[1647004185298,17.9932,83.38,83.335,5.997]
[1647004185497,17.9932,83.38,83.321,5.998]
[1647004185697,17.9932,83.38,83.322,6.0]
[1647004186297,17.9932,83.38,83.321,6.0]
[1647004186496,17.9932,83.38,83.322,58.55414137]
[1647004186700,17.9932,83.38,83.323,6.0]
[1647004187098,17.9932,83.38,83.33,17.9925]
[1647004188596,17.9932,83.38,83.324,23.116]
[1647004188998,17.9932,83.38,83.325,6.0]
[1647004189196,17.9932,83.38,83.326,5.998]
[1647004189400,25.08814519,83.387,83.326,5.998]
[1647004189597,25.08814519,83.387,83.33,17.9924]
[1647004190601,17.9932,83.38,83.33,17.9924]
[1647004192100,17.9932,83.38,83.331,5.998]
[1647004192300,17.9932,83.38,83.33,17.9924]
[1647004193300,17.9932,83.38,83.326,5.998]
[1647004193703,17.9932,83.38,83.325,5.998]
[1647004193903,31.08614519,83.387,83.325,5.998]
[1647004194800,25.08814519,83.387,83.325,5.998]
[1647004195001,25.08814519,83.387,83.33,17.9926]
[1647004195204,25.08814519,83.387,83.331,5.998]
[1647004196002,24.7333,83.388,83.332,119.7]
[1647004196203,24.7333,83.388,83.34,17.9903]
[1647004196403,24.7333,83.388,83.341,5.997]
[1647004197003,24.7333,83.388,83.342,64.50595337]
[1647004197403,24.7333,83.388,83.335,5.997]
[1647004197627,24.7333,83.388,83.31,5.997]
[1647004197826,27.77777957,83.388,83.321,5.998]
[1647004198027,27.77777957,83.388,83.32,6.0]
[1647004198226,17.9934,83.38,83.32,6.0]
[1647004198426,17.9934,83.38,83.321,50.7698643]
[1647004198830,3.04447957,83.379,83.305,5.998]
[1647004199027,9.04247957,83.379,83.305,5.998]
[1647004199229,18.0014,83.36,83.305,5.998]
[1647004199732,3.18459511,83.359,83.305,5.998]
[1647004200328,3.04447957,83.378,83.306,119.7]
[1647004200530,28.56836495,83.391,83.311,119.7]
[1647004200729,22.8633,83.393,83.311,119.7]
[1647004200930,22.8633,83.393,83.31,20.42]
[1647004200931,5.998,83.415,83.313,119.7]
[1647004201129,23.6427,83.419,83.313,119.7]
[1647004201328,28.05930638,83.418,83.321,119.7]
[1647004201527,28.05930638,83.418,83.331,119.7]
[1647004201728,28.05930638,83.418,83.333,119.7]
[1647004201928,5.996,83.417,83.333,119.7]
[1647004202730,17.9869,83.41,83.35,17.9873]
[1647004202931,29.6387,83.409,83.35,17.9873]
[1647004206243,29.6387,83.409,83.343,119.7]
[1647004206445,29.6387,83.409,83.342,22.9352]
[1647004206644,17.9888,83.4,83.342,22.9352]